bitfinex/quotes_SOLUSD_20241024
["timestamp","ask_amount","ask_price","bid_price","bid_amount"]
[1729803764779,21.84044318,177.42,177.31,9.90881193]
[1729803764780,1.4,177.39,177.31,9.90881193]
[1729803765067,1.4,177.39,177.29,23.776884]
[1729803765068,9.90881193,177.35,177.3,9.90881193]
[1729803765275,9.90881193,177.35,177.29,33.68569593]
[1729803765451,9.90881193,177.35,177.3,9.90881193]
[1729803766773,9.90881193,177.34,177.3,23.776884]
[1729803767157,9.90881193,177.33,177.28,9.90881193]
[1729803767355,9.90881193,177.33,177.27,26.49851193]
[1729803767561,9.90881193,177.34,177.28,33.68569593]
[1729803767871,7.0374,177.39,177.28,33.68569593]
[1729803768176,9.90881193,177.34,177.28,33.68569593]
[1729803769071,1.4,177.39,177.31,23.776884]
[1729803769260,1.4,177.39,177.32,9.90881193]
[1729803769467,9.90881193,177.37,177.32,9.90881193]
[1729803771264,9.90881193,177.37,177.31,9.90881193]
[1729803771474,9.90881193,177.36,177.32,23.776884]
[1729803771658,1.4,177.39,177.32,23.776884]
[1729803771861,9.90881193,177.36,177.32,23.776884]
[1729803772170,1.4,177.39,177.32,33.68569593]
[1729803772368,9.90881193,177.36,177.32,23.776884]
[1729803772754,9.90881193,177.36,177.31,9.90881193]
[1729803772956,39.63524772,177.39,177.3,23.776884]
[1729803773275,9.90881193,177.34,177.3,23.776884]
[1729803774371,39.63524772,177.39,177.3,23.776884]
[1729803774576,9.90881193,177.34,177.3,23.776884]
[1729803774973,9.90881193,177.32,177.29,2.25709304]
[1729803775178,9.90881193,177.33,177.29,2.25709304]
[1729803775557,9.90881193,177.33,177.28,9.90881193]
[1729803777974,5.6376,177.38,177.28,9.90881193]
[1729803778163,9.90881193,177.33,177.28,9.90881193]
[1729803780284,5.6376,177.38,177.28,33.68569593]
[1729803780463,9.90881193,177.34,177.28,33.68569593]
[1729803781189,5.6376,177.38,177.3,9.90881193]
[1729803781386,25.76209,177.41,177.31,9.90881193]
[1729803781563,9.90881193,177.34,177.28,23.776884]
[1729803781762,9.90881193,177.34,177.3,23.776884]
[1729803781962,25.76209,177.41,177.3,9.90881193]
[1729803782184,9.90881193,177.34,177.29,9.90881193]
[1729803782378,9.90881193,177.34,177.3,23.776884]
[1729803782883,9.90881193,177.35,177.3,33.68569593]
[1729803784281,9.90881193,177.36,177.3,33.68569593]
[1729803785187,21.84044318,177.42,177.32,9.90881193]
[1729803785380,9.90881193,177.38,177.32,9.90881193]
[1729803785685,21.84044318,177.42,177.32,9.90881193]
[1729803785879,9.90881193,177.37,177.32,9.90881193]
[1729803786281,9.90881193,177.36,177.32,23.776884]
[1729803787686,9.90881193,177.36,177.31,23.776884]
[1729803787995,9.90881193,177.35,177.3,9.90881193]
[1729803788290,9.90881193,177.36,177.3,33.68569593]
[1729803788887,9.90881193,177.35,177.3,23.776884]
[1729803789584,9.90881193,177.34,177.3,23.776884]
[1729803790075,9.90881193,177.31,177.23,15.757]
[1729803790279,5.6376,177.38,177.28,9.90881193]
[1729803790481,9.90881193,177.34,177.28,9.90881193]
[1729803790670,9.90881193,177.29,177.23,15.657]
[1729803790865,9.90881193,177.29,177.24,16.01081193]
[1729803791181,21.6681,177.36,177.25,9.90881193]
[1729803791369,9.90881193,177.3,177.24,16.01081193]
[1729803791776,21.6681,177.36,177.24,16.01081193]
[1729803791972,9.90881193,177.3,177.24,16.01081193]
[1729803792886,9.90881193,177.3,177.25,33.68569593]
[1729803793975,9.90881193,177.31,177.26,9.90881193]
[1729803798983,9.90881193,177.32,177.26,9.90881193]
[1729803799289,21.6681,177.36,177.26,9.90881193]
[1729803799487,9.90881193,177.32,177.26,9.90881193]
[1729803800090,9.90881193,177.32,177.27,9.90881193]
[1729803800765,21.6681,177.36,177.27,9.90881193]
[1729803800970,9.90881193,177.32,177.27,9.90881193]
[1729803804597,22.4714,177.41,177.31,9.90881193]
[1729803804907,9.90881193,177.4,177.35,9.90881193]
[1729803805391,38.01701193,177.41,177.36,9.90881193]
[1729803806393,9.90881193,177.4,177.35,9.90881193]
[1729803807997,4.22523222,177.39,177.35,9.90881193]
[1729803808493,4.22523222,177.39,177.34,9.90881193]
[1729803809189,9.90881193,177.38,177.32,9.90881193]
[1729803810376,9.90881193,177.37,177.32,9.90881193]
[1729803810682,9.90881193,177.38,177.33,9.90881193]
[1729803812107,28.1082,177.41,177.34,9.90881193]
[1729803812289,9.90881193,177.38,177.33,12.16561928]
[1729803812683,9.90881193,177.38,177.33,9.90881193]
[1729803814103,9.90881193,177.38,177.32,9.90881193]
[1729803815099,9.90881193,177.37,177.32,9.90881193]
[1729803815598,28.1082,177.41,177.32,9.90881193]
[1729803815908,9.90881193,177.37,177.32,9.90881193]
[1729803817709,9.90881193,177.37,177.33,2.25680793]
[1729803817889,9.90881193,177.35,177.33,2.25680793]
[1729803818691,9.90881193,177.36,177.33,2.25680793]
[1729803818884,9.90881193,177.36,177.31,9.90881193]
[1729803821892,9.90881193,177.36,177.32,2.25682427]
[1729803822293,9.90881193,177.33,177.32,2.25682427]
[1729803822510,9.90881193,177.34,177.32,2.25682427]
[1729803822710,5.87114318,177.42,177.32,12.1656362]
[1729803822914,5.87114318,177.42,177.36,9.90881193]
[1729803823117,5.87114318,177.42,177.32,8.73372427]
[1729803823289,9.90881193,177.38,177.33,9.90881193]
[1729803823913,9.90881193,177.37,177.3,15.18]
[1729803824099,9.90881193,177.37,177.32,9.90881193]
[1729803825408,9.90881193,177.36,177.28,6.4769]
[1729803825602,9.90881193,177.35,177.3,9.90881193]
[1729803825797,9.90881193,177.36,177.3,9.90881193]
[1729803826192,5.6374,177.39,177.32,9.90881193]
[1729803826490,9.90881193,177.39,177.33,9.90881193]
[1729803827197,5.87114318,177.42,177.36,9.90881193]
[1729803827405,5.87114318,177.42,177.34,2.25679435]
[1729803827406,5.87114318,177.42,177.41,9.90881193]
[1729803827919,5.87114318,177.42,177.32,15.3204]
[1729803827920,5.87114318,177.42,177.4,9.90881193]
[1729803828396,5.87114318,177.42,177.41,9.90881193]
[1729803829009,5.87114318,177.42,177.33,23.776884]
[1729803829214,5.87114318,177.42,177.39,9.90881193]
[1729803829407,5.87114318,177.42,177.4,9.90881193]
[1729803830000,5.87114318,177.42,177.39,9.90881193]
[1729803830310,5.87114318,177.42,177.37,15.188]
[1729803830511,5.87114318,177.42,177.41,9.90881193]
[1729803831308,5.87114318,177.42,177.4,9.90881193]
[1729803831518,5.87114318,177.42,177.39,9.90881193]
[1729803832913,5.87114318,177.42,177.32,21.9525]
[1729803833113,5.87114318,177.42,177.38,9.90881193]
[1729803836613,15.77995511,177.42,177.38,9.90881193]
[1729803836915,15.77995511,177.42,177.37,9.90881193]
[1729803839223,9.90881193,177.41,177.36,9.90881193]
[1729803841417,5.87114318,177.42,177.36,9.90881193]
[1729803841925,9.90881193,177.4,177.35,33.68569593]
[1729803844114,5.87114318,177.42,177.35,33.68569593]
[1729803844322,9.90881193,177.4,177.35,33.68569593]
[1729803846223,5.87114318,177.42,177.35,33.68569593]
[1729803846414,9.90881193,177.4,177.35,33.68569593]
[1729803846609,5.87114318,177.42,177.36,9.90881193]
[1729803846926,9.90881193,177.41,177.37,23.776884]
[1729803848006,9.90881193,177.4,177.36,23.776884]
[1729803848808,5.87114318,177.42,177.36,33.68569593]
[1729803849010,5.87114318,177.42,177.38,23.776884]
[1729803849321,15.77995511,177.42,177.38,23.776884]
[1729803849726,5.87114318,177.42,177.38,23.776884]
[1729803849915,15.77995511,177.42,177.38,23.776884]
[1729803850117,9.90881193,177.41,177.38,23.776884]
[1729803850311,9.90881193,177.41,177.37,24.027864]
[1729803850819,5.87114318,177.42,177.37,33.93667593]
[1729803851011,15.77995511,177.42,177.37,33.93667593]
[1729803851621,9.90881193,177.41,177.37,24.027864]
[1729803852004,5.87114318,177.42,177.37,24.027864]
[1729803852205,9.90881193,177.41,177.37,24.027864]
[1729803852506,9.90881193,177.41,177.37,23.776884]
[1729803852707,9.90881193,177.41,177.36,23.776884]
[1729803856630,11.50744318,177.42,177.36,23.776884]
[1729803856817,9.90881193,177.39,177.36,23.776884]
[1729803857133,9.90881193,177.39,177.35,23.776884]
[1729803858334,5.6367,177.41,177.35,23.776884]
[1729803858516,9.90881193,177.39,177.35,23.776884]
[1729803860032,5.6367,177.41,177.35,23.776884]
[1729803860348,9.90881193,177.4,177.35,33.68569593]
[1729803861720,5.87114318,177.42,177.35,23.776884]
[1729803861932,5.87114318,177.42,177.28,0.1]
[1729803861933,9.90881193,177.36,177.3,9.90881193]
[1729803862236,9.90881193,177.35,177.3,9.90881193]
[1729803863028,9.90881193,177.35,177.31,24.027864]
[1729803863225,9.90881193,177.36,177.31,24.027864]
[1729803863433,9.90881193,177.35,177.31,23.776884]
[1729803863623,9.90881193,177.32,177.28,15.7972]
[1729803863827,9.90881193,177.3,177.23,15.7972]
[1729803864027,9.90881193,177.29,177.23,25.70601193]
[1729803864234,16.4681,177.36,177.23,25.70601193]
[1729803864427,9.90881193,177.29,177.23,25.70601193]
[1729803864628,9.90881193,177.29,177.24,10.03430193]
[1729803864825,39.63524772,177.3,177.23,15.7972]
[1729803865024,9.90881193,177.25,177.18,22.054]
[1729803865220,9.90881193,177.25,177.2,9.90881193]
[1729803865822,9.90881193,177.26,177.2,9.90881193]
[1729803866537,9.90881193,177.26,177.21,9.90881193]
[1729803866938,9.90881193,177.27,177.21,9.90881193]
[1729803867330,9.90881193,177.27,177.22,23.776884]
[1729803867839,9.90881193,177.28,177.22,33.68569593]
[1729803868236,9.90881193,177.27,177.22,33.68569593]
[1729803868443,9.90881193,177.28,177.22,33.68569593]
[1729803868732,9.90881193,177.26,177.22,23.776884]
[1729803869650,9.90881193,177.27,177.22,23.776884]
[1729803870739,9.90881193,177.27,177.22,33.68569593]
[1729803870936,9.90881193,177.27,177.22,9.90881193]
[1729803871525,9.90881193,177.27,177.21,9.90881193]
[1729803872544,22.1087,177.29,177.22,9.90881193]
[1729803872743,9.90881193,177.27,177.22,9.90881193]
[1729803873625,9.90881193,177.28,177.22,9.90881193]
[1729803875141,9.90881193,177.28,177.23,9.90881193]
[1729803875846,9.90881193,177.25,177.19,23.776884]
[1729803876146,9.90881193,177.26,177.2,9.90881193]
[1729803876335,9.90881193,177.26,177.21,9.90881193]
[1729803877935,9.90881193,177.25,177.2,9.90881193]
[1729803879745,16.4681,177.29,177.24,9.90881193]
[1729803879945,16.4681,177.29,177.28,9.90881193]
[1729803880548,16.4681,177.29,177.27,9.90881193]
[1729803885256,16.4681,177.29,177.21,63.66311172]
[1729803885556,16.4681,177.29,177.27,9.90881193]
[1729803892960,5.6399,177.31,177.27,9.90881193]
[1729803893144,11.6602,177.32,177.27,9.90881193]
[1729803896664,11.6602,177.32,177.21,24.027864]
[1729803896862,21.56901193,177.32,177.21,24.027864]
[1729803897063,21.56901193,177.32,177.27,9.90881193]
[1729803897472,11.6602,177.32,177.28,9.90881193]
[1729803898059,15.6859,177.33,177.29,9.90881193]
[1729803898865,15.6859,177.33,177.3,9.90881193]
[1729803899062,15.6859,177.33,177.31,9.90881193]
[1729803900579,25.6383,177.36,177.31,9.90881193]
[1729803903154,25.6383,177.36,177.31,9.90881193]
[1729803906470,35.54711193,177.36,177.31,9.90881193]
[1729803907070,25.6383,177.36,177.31,9.90881193]
[1729803907269,5.6383,177.36,177.31,9.90881193]
[1729803908583,5.6383,177.36,177.32,9.90881193]
[1729803910786,5.6383,177.36,177.31,9.90881193]
[1729803912578,5.6383,177.36,177.27,23.776884]
[1729803912888,5.6383,177.36,177.31,9.90881193]
[1729803916690,15.54711193,177.36,177.31,9.90881193]
[1729803920392,9.90881193,177.34,177.28,9.90881193]
[1729803924492,9.90881193,177.34,177.29,9.90881193]
[1729803929380,9.90881193,177.34,177.28,9.90881193]
[1729803932704,9.90881193,177.33,177.27,9.90881193]
[1729803932891,5.6382,177.36,177.26,9.90881193]
[1729803933099,9.90881193,177.31,177.22,22.38869]
[1729803933399,9.90881193,177.31,177.26,9.90881193]
[1729803933587,5.6382,177.36,177.26,9.90881193]
[1729803933588,9.90881193,177.32,177.26,9.90881193]
[1729803934202,9.90881193,177.32,177.27,9.90881193]
[1729803935074,9.90881193,177.32,177.29,2.25719416]
[1729803935704,9.90881193,177.32,177.27,9.90881193]
[1729803940709,9.90881193,177.33,177.28,9.90881193]
[1729803941019,15.54771193,177.34,177.29,9.90881193]
[1729803942407,9.90881193,177.33,177.28,9.90881193]
[1729803945810,9.90881193,177.32,177.23,24.027864]
[1729803946103,9.90881193,177.32,177.27,9.90881193]
[1729803946488,5.6389,177.34,177.23,24.027864]
[1729803946915,5.6382,177.36,177.23,24.027864]
[1729803967244,5.83917134,177.4,177.26,6.0107]
[1729803967406,5.637,177.4,177.27,24.153354]
[1729803968909,20.12549,177.39,177.27,24.027864]
[1729803969529,25.76239,177.4,177.27,24.027864]
[1729803974615,25.76239,177.4,177.27,23.527864]
[1729803982932,20.12549,177.36,177.22,6.0833]
[1729803983534,0.12549,177.32,177.2,0.97403665]
[1729803983715,20.12549,177.32,177.16,0.1]
[1729803983917,20.0,177.32,177.17,0.1]
[1729803984211,20.0,177.32,177.19,6.20879]
[1729803984834,20.0,177.32,177.2,24.027864]
[1729803985035,5.6398,177.31,177.2,24.027864]
[1729803986440,5.6398,177.31,177.2,23.776884]
[1729803987734,21.5975,177.33,177.21,0.37647]
[1729803987927,27.2367,177.33,177.21,0.37647]
[1729803990823,27.2367,177.33,177.21,0.25098]
[1729803994532,27.2367,177.33,177.19,6.0833]
[1729803994533,5.6398,177.31,177.19,6.0833]
[1729803994740,5.6398,177.31,177.18,15.2746]
[1729803995121,20.12549,177.3,177.18,15.2746]
[1729803995728,15.2386,177.29,177.16,0.12549]
[1729803996422,15.2386,177.29,177.17,0.12549]
[1729803997027,5.6407,177.28,177.17,0.25098]
[1729804005047,5.6407,177.28,177.16,23.776884]
[1729804006548,5.6414,177.26,177.16,23.776884]
[1729804009444,5.6414,177.26,177.17,2.25796214]
[1729804010053,20.0,177.25,177.17,2.25796214]
[1729804010253,20.0,177.25,177.16,23.776884]
[1729804011534,5.642,177.25,177.16,23.776884]
[1729804015451,5.642,177.25,177.17,2.25799915]
[1729804017551,5.642,177.25,177.17,2.25800872]
[1729804018458,5.642,177.25,177.16,23.776884]
[1729804021854,12.2301,177.27,177.16,23.776884]
[1729804022039,12.2301,177.27,177.18,23.776884]
[1729804023159,12.2301,177.27,177.19,2.25796693]
[1729804024660,12.2301,177.27,177.18,23.776884]
[1729804024846,12.2301,177.27,177.19,2.25798654]
[1729804030761,12.2301,177.27,177.18,23.776884]
[1729804038371,15.2386,177.29,177.2,23.776884]
[1729804039157,5.64,177.31,177.2,30.229584]
[1729804040057,15.8322,177.33,177.2,30.229584]
[1729804040258,5.6395,177.32,177.2,30.229584]
[1729804040867,5.6395,177.32,177.21,0.25098]
[1729804042972,5.6395,177.32,177.23,23.776884]
[1729804054200,15.8322,177.33,177.24,0.25098]
[1729804057476,5.6388,177.34,177.24,0.25098]
[1729804058390,6.4999,177.36,177.24,0.25098]
[1729804058698,16.3141,177.37,177.26,30.345764]
[1729804059001,21.952,177.37,177.26,30.345764]
[1729804061088,16.3141,177.37,177.27,0.12549]
[1729804061291,11.9903,177.41,177.27,0.12549]
[1729804062305,11.9903,177.41,177.29,0.12549]
[1729804062602,20.0,177.4,177.29,0.12549]
[1729804064382,25.6371,177.4,177.29,0.12549]
[1729804068282,6.3537,177.41,177.29,0.12549]
[1729804068485,5.6371,177.4,177.29,0.12549]
[1729804071204,5.6371,177.4,177.28,24.027864]
[1729804071389,5.6371,177.4,177.26,6.3179]
[1729804071888,5.6371,177.4,177.27,0.12549]
[1729804072511,5.6371,177.4,177.27,24.153354]
[1729804076921,20.0,177.4,177.27,24.253354]
[1729804078202,5.6372,177.39,177.27,24.253354]
[1729804078507,11.51725973,177.43,177.33,0.12549]
[1729804078711,11.51725973,177.43,177.34,0.25098]
[1729804078915,5.88105973,177.43,177.34,0.25098]
[1729804079095,5.88105973,177.43,177.35,0.12549]
[1729804079514,11.51715973,177.43,177.34,0.25098]
[1729804079714,5.88105973,177.43,177.35,0.12549]
[1729804080408,5.88105973,177.43,177.37,24.027864]
[1729804082505,5.6357,177.44,177.37,24.027864]
[1729804082923,0.6033217,177.45,177.37,24.027864]
[1729804083123,6.2386217,177.45,177.37,24.027864]
[1729804083709,6.2386217,177.45,177.37,23.902374]
[1729804084025,6.2386217,177.45,177.35,0.12549]
[1729804084026,6.2386217,177.45,177.34,24.027864]
[1729804085529,6.2386217,177.45,177.34,0.12549]
[1729804085708,6.2386217,177.45,177.33,23.776884]
[1729804085908,31.820767,177.4,177.33,23.776884]
[1729804089210,37.457767,177.4,177.33,23.776884]
[1729804090710,31.820767,177.4,177.34,0.25098]
[1729804091515,5.6372,177.39,177.33,23.776884]
[1729804092011,5.6372,177.39,177.29,0.12549]
[1729804092333,5.6372,177.39,177.29,0.25098]
[1729804093436,5.6372,177.39,177.3,0.12549]
[1729804094628,22.2609,177.39,177.28,21.7271]
[1729804094820,6.4717,177.37,177.24,15.4783]
[1729804096213,5.6382,177.36,177.25,24.027864]
[1729804097638,5.6382,177.36,177.26,0.12549]
[1729804101113,5.6382,177.36,177.24,15.4783]
[1729804102316,5.6374,177.39,177.25,30.67814891]
[1729804102512,31.820767,177.4,177.27,24.253354]
[1729804103420,31.820767,177.4,177.28,0.35098]
[1729804103629,31.820767,177.4,177.29,0.12549]
[1729804103932,31.820767,177.4,177.29,0.37647]
[1729804109936,37.457667,177.4,177.29,0.37647]
[1729804111144,37.457667,177.4,177.3,2.25644633]
[1729804112629,37.457667,177.4,177.29,0.25098]
[1729804113230,31.820767,177.4,177.29,0.25098]
[1729804113549,31.820767,177.4,177.3,0.37647]
[1729804113926,32.51944902,177.4,177.3,0.37647]
[1729804116428,38.15654902,177.4,177.29,0.25098]
[1729804116744,38.15654902,177.4,177.29,0.37647]
[1729804120053,38.15654902,177.4,177.29,0.25098]
[1729804120655,37.457867,177.4,177.3,2.2565867]
[1729804121032,31.820767,177.4,177.31,23.902374]
[1729804125349,31.820767,177.4,177.32,2.25644801]
[1729804127451,31.820767,177.4,177.33,24.027864]
[1729804129363,31.820767,177.4,177.34,0.12549]
[1729804132345,31.820767,177.4,177.35,15.2195]
[1729804132656,31.820767,177.4,177.36,24.153354]
[1729804134151,31.820767,177.4,177.37,0.1]
[1729804134350,31.820767,177.4,177.39,0.25098]
[1729804134789,31.820767,177.4,177.39,0.37647]
[1729804136361,31.820767,177.4,177.39,24.153354]
[1729804136951,31.820767,177.4,177.39,0.37647]
[1729804139672,31.820767,177.4,177.39,26.50819583]
[1729804140456,31.820767,177.4,177.39,26.6081939]
[1729804140654,16.3611737,177.4,177.39,26.6081939]
[1729804141055,16.3611737,177.4,177.39,40.311554]
[1729804141773,16.3611737,177.4,177.39,42.56628095]
[1729804142381,16.3611737,177.4,177.39,44.73534934]
[1729804142672,16.3611737,177.4,177.39,44.83534934]
[1729804142867,16.3611737,177.4,177.39,42.58062239]
[1729804143073,16.3611737,177.4,177.39,42.48062239]
[1729804143364,16.3611737,177.4,177.39,42.58062239]
[1729804144166,6.4981737,177.4,177.39,42.58062239]
[1729804144657,0.6033217,177.45,177.44,0.25098]
[1729804145172,0.6033217,177.45,177.44,0.12549]
[1729804145467,0.6033217,177.45,177.44,0.25098]
[1729804148971,0.6033217,177.45,177.44,24.153354]
[1729804149773,0.6033217,177.45,177.44,0.37647]
[1729804150254,0.6033217,177.45,177.43,23.776884]
[1729804151573,0.6033217,177.45,177.4,0.12549]
[1729804151778,0.6033217,177.45,177.4,0.1]
[1729804152564,0.6033217,177.45,177.4,0.22549]
[1729804152953,0.6033217,177.45,177.41,0.37647]
[1729804153466,0.6033217,177.45,177.41,24.153354]
[1729804154476,0.6033217,177.45,177.41,24.253354]
[1729804154955,0.6033217,177.45,177.41,24.353354]
[1729804156675,0.6033217,177.45,177.43,0.37647]
[1729804165574,0.6033217,177.45,177.43,0.47647]
[1729804165783,22.6339,177.56,177.47,0.12549]
[1729804169163,0.76342667,177.58,177.49,0.1]
[1729804169357,81.61062938,177.6,177.51,0.12549]
[1729804170464,81.61062938,177.6,177.52,24.027864]
[1729804170984,81.61062938,177.6,177.52,0.25098]
[1729804171282,81.61062938,177.6,177.53,0.12549]
[1729804172985,81.61062938,177.6,177.52,24.027864]
[1729804173284,81.61062938,177.6,177.47,6.5759]
[1729804173585,87.24122938,177.6,177.48,0.12549]
[1729804173784,87.24122938,177.6,177.45,16.6828]
[1729804174671,87.24122938,177.6,177.46,0.12549]
[1729804175182,87.24122938,177.6,177.47,5.19674587]
[1729804175374,87.24122938,177.6,177.47,6.32318278]
[1729804175575,87.24122938,177.6,177.48,24.027864]
[1729804175876,81.61062938,177.6,177.5,24.027864]
[1729804176786,81.61062938,177.6,177.52,24.153354]
[1729804177364,81.61062938,177.6,177.52,0.37647]
[1729804178394,81.61062938,177.6,177.55,0.12549]
[1729804178568,81.61062938,177.6,177.57,0.25098]
[1729804178896,81.61062938,177.6,177.58,0.25098]
[1729804179190,81.61062938,177.6,177.59,0.25098]
[1729804179362,81.61062938,177.6,177.56,23.776884]
[1729804179561,81.61062938,177.6,177.57,0.25098]
[1729804180565,81.61062938,177.6,177.53,1.12598325]
[1729804180770,81.61062938,177.6,177.53,24.027864]
[1729804181478,81.61062938,177.6,177.54,0.12549]
[1729804181682,81.61062938,177.6,177.56,0.12549]
[1729804181981,81.61062938,177.6,177.57,0.25098]
[1729804183482,81.61062938,177.6,177.56,23.776884]
[1729804183869,81.61062938,177.6,177.52,15.5922]
[1729804184065,81.61062938,177.6,177.53,0.12549]
[1729804184797,81.61062938,177.6,177.5,6.1441]
[1729804184973,81.61062938,177.6,177.49,2.35305029]
[1729804185171,81.61062938,177.6,177.5,0.12549]
[1729804185669,81.61062938,177.6,177.5,1.25169203]
[1729804186193,81.61062938,177.6,177.52,0.12549]
[1729804186973,81.61062938,177.6,177.53,0.12549]
[1729804187673,81.61062938,177.6,177.54,0.25098]
[1729804187868,81.61062938,177.6,177.54,0.12549]
[1729804188198,81.61062938,177.6,177.54,0.37647]
[1729804190880,81.61062938,177.6,177.55,0.12549]
[1729804191877,81.61062938,177.6,177.56,0.12549]
[1729804192097,81.61062938,177.6,177.56,0.25098]
[1729804192424,81.61062938,177.6,177.55,0.12549]
[1729804192594,81.61062938,177.6,177.54,0.25098]
[1729804192900,81.61062938,177.6,177.54,0.37647]
[1729804195894,81.61062938,177.6,177.54,0.25098]
[1729804196201,81.61062938,177.6,177.53,23.776884]
[1729804196901,81.61062938,177.6,177.47,5.97759157]
[1729804197091,87.24132938,177.6,177.48,0.1]
[1729804197288,87.24132938,177.6,177.47,5.87759157]
[1729804197495,87.24132938,177.6,177.48,0.12549]
[1729804197796,87.24132938,177.6,177.48,0.1]
[1729804198001,87.24132938,177.6,177.48,0.22549]
[1729804198798,81.61062938,177.6,177.49,0.37647]
[1729804198993,81.61062938,177.6,177.49,24.153354]
[1729804199604,81.61062938,177.6,177.54,2.25318454]
[1729804201986,15.2371,177.59,177.54,2.25318454]
[1729804204509,5.6312,177.58,177.54,2.25318454]
[1729804209798,20.868,177.59,177.54,2.25318454]
[1729804210390,15.2371,177.59,177.54,2.25318454]
[1729804211216,81.61062938,177.6,177.54,2.25318454]
[1729804212708,81.61062938,177.6,177.53,24.153354]
[1729804215003,81.61062938,177.6,177.55,24.153354]
[1729804217319,81.61062938,177.6,177.55,24.153354]
[1729804222503,81.61062938,177.6,177.55,0.37647]
[1729804225933,81.61062938,177.6,177.57,24.027864]
[1729804231434,81.61062938,177.6,177.57,0.25098]
[1729804234831,81.61062938,177.6,177.58,0.12549]
[1729804235215,81.61062938,177.6,177.58,23.902374]
[1729804235530,81.61062938,177.6,177.59,0.37647]
[1729804236225,81.61062938,177.6,177.58,23.776884]
[1729804236226,81.61062938,177.6,177.58,0.12549]
[1729804236424,81.61062938,177.6,177.58,23.902374]
[1729804236658,81.61062938,177.6,177.59,0.25098]
[1729804236811,81.61062938,177.6,177.59,0.37647]
[1729804237161,71.23809853,177.6,177.59,0.37647]
[1729804242820,71.23809853,177.6,177.59,26.40600473]
[1729804243021,71.23809853,177.6,177.59,26.50600473]
[1729804244032,57.66598613,177.6,177.59,26.50600473]
[1729804245213,50.66558613,177.6,177.59,26.50600473]
[1729804245414,50.66558613,177.6,177.59,0.47647]
[1729804245633,39.46858613,177.6,177.59,0.47647]
[1729804248141,39.46858613,177.6,177.59,26.50595905]
[1729804248518,28.76858613,177.6,177.59,26.50595905]
[1729804248740,28.76858613,177.6,177.59,0.47647]
[1729804249141,12.435,177.6,177.59,0.47647]
[1729804249516,12.435,177.6,177.55,2.41489626]
[1729804249719,12.435,177.6,177.55,2.31489626]
[1729804249921,12.435,177.6,177.55,0.12549]
[1729804250841,12.435,177.6,177.55,24.153354]
[1729804251042,12.435,177.6,177.55,24.253354]
[1729804251249,12.435,177.6,177.55,24.153354]
[1729804251535,12.435,177.6,177.54,5.87526527]
[1729804251844,12.435,177.6,177.54,8.20117244]
[1729804252540,12.435,177.6,177.55,0.12549]
[1729804253043,12.435,177.6,177.55,24.027864]
[1729804254933,12.435,177.6,177.51,0.9766804]
[1729804255137,12.435,177.6,177.52,0.12549]
[1729804255346,15.0435,177.59,177.52,0.12549]
[1729804256219,15.0435,177.59,177.52,24.153354]
[1729804256853,15.0435,177.59,177.52,24.027864]
[1729804257655,15.0435,177.59,177.53,0.37647]
[1729804258167,15.0435,177.59,177.54,23.776884]
[1729804258640,18.8069,177.6,177.55,0.37647]
[1729804258641,12.435,177.6,177.55,0.37647]
[1729804258943,12.435,177.6,177.55,0.25098]
[1729804260542,12.435,177.6,177.55,0.37647]
[1729804261823,12.435,177.6,177.58,0.12549]
[1729804262151,12.435,177.6,177.59,0.37647]
[1729804263756,0.6033217,177.63,177.6,0.25098]
[1729804263950,1e-08,177.63,177.62,24.153354]
[1729804264125,0.1,177.7,177.63,24.027864]
[1729804264518,0.1,177.7,177.63,0.25098]
[1729804264724,0.1,177.7,177.64,0.25098]
[1729804265024,0.1,177.7,177.67,0.25098]
[1729804265236,27.516,177.73,177.6,24.027864]
[1729804265542,21.3893,177.73,177.6,24.027864]
[1729804265743,22.23346973,177.73,177.6,0.25098]
[1729804266050,22.23346973,177.73,177.61,0.12549]
[1729804266237,22.23346973,177.73,177.63,0.12549]
[1729804266740,21.3893,177.73,177.63,0.12549]
[1729804267351,21.3893,177.73,177.63,0.37647]
[1729804267649,21.3893,177.73,177.64,0.12549]
[1729804268331,16.1053,177.73,177.64,0.12549]
[1729804270348,0.4,177.8,177.67,0.1]
[1729804270645,0.4,177.8,177.66,0.1]
[1729804271150,0.4,177.8,177.67,0.12549]